[Event "EYCC Open-U14 2019"]
[Site "Bratislava"]
[Date "2019.08.02"]
[Round "1.18"]
[White "Kures, Michael"]
[Black "Kirillov, Dmitry"]
[Result "0-1"]
[ECO "B23"]
[WhiteElo "1898"]
[BlackElo "2244"]
[Annotator "NA"]
[PlyCount "94"]
[EventDate "2019.08.02"]
[EventType "swiss"]
[EventCountry "SVK"]
[SourceTitle "playchess.com"]
[Source "ChessBase"]
[SourceQuality "1"]
[TimeControl "40/5400+30:1800+30"]

1. e4 {[%emt 0:00:00]} c5 {[%emt 0:00:00]} 2. Nc3 {[%emt 0:00:07]} e6 {[%emt 0:00:00]} 3. f4 {[%emt 0:00:23]} d5 {[%emt 0:02:13]} 4. Nf3 {[%emt 0:00:48]} Nc6 {[%emt 0:02:57]} 5. Bb5 {[%emt 0:00:44]} d4 {[%emt 0:01:26]} 6. Bxc6+ {[%emt 0:02:28]} bxc6 {[%emt 0:00:09]} 7. Ne2 {[%emt 0:00:08]} Nf6 {[%emt 0:13:12]} 8. d3 {[%emt 0:01:55]} Ba6 {[%emt 0:07:03]} 9. b3 {[%emt 0:02:16]} Be7 {[%emt 0:02:04]} 10. Bd2 {[%emt 0:02:10]} O-O {[%emt 0:01:38]} 11. h3 {[%emt 0:02:59]} Nd7 {[%emt 0:02:27]} 12. O-O {[%emt 0:01:11]} f5 {[%emt 0:01:10]} 13. e5 {[%emt 0:04:18]} Nb6 {[%emt 0:03:41]} 14. g4 {[%emt 0:03:08]} Qe8 {[%emt 0:09:28]} 15. Qe1 {[%emt 0:01:07]} Nd5 {[%emt 0:04:38]} 16. gxf5 {[%emt 0:07:09]} exf5 {[%emt 0:03:34]} 17. Qg3 {[%emt 0:00:31]} Nc7 {[%emt 0:00:28]} 18. Kf2 {[%emt 0:01:46]} Ne6 {[%emt 0:01:39]} 19. Rg1 {[%emt 0:00:33]} Qd7 {[%emt 0:01:50]} 20. Rg2 {[%emt 0:02:09]} Rab8 {[%emt 0:01:20]} 21. h4 {[%emt 0:04:52]} Rf7 {[%emt 0:07:32]} 22. Ng5 {[%emt 0:02:25]} Bxg5 {[%emt 0:00:52]} 23. hxg5 {[%emt 0:00:08]} g6 {[%emt 0:00:04]} 24. Rh1 {[%emt 0:00:43]} c4 {[%emt 0:00:49]} 25. dxc4 {[%emt 0:10:13]} Nc5 {[%emt 0:10:17]} 26. Kg1 {[%emt 0:03:01]} Ne4 {[%emt 0:00:18]} 27. Qd3 {[%emt 0:00:32]} c5 {[%emt 0:00:15]} 28. Rh6 {[%emt 0:02:19]} Bb7 {[%emt 0:00:47]} 29. Rgh2 {[%emt 0:01:18]} Rd8 {[%emt 0:00:19]} 30. Ba5 {[%emt 0:01:25]} Re8 {[%emt 0:00:08]} 31. c3 {[%emt 0:16:46]} Qe7 {[%emt 0:07:06]} 32. cxd4 {[%emt 0:02:35]} cxd4 {[%emt 0:00:17]} 33. Qxd4 {[%emt 0:04:47]} Qa3 {[%emt 0:00:13]} 34. Be1 {[%emt 0:04:21]} Bc6 {[%emt 0:00:02]} 35. Qe3 {[%emt 0:04:37]} Rd8 {[%emt 0:00:52]} 36. Qh3 {[%emt 0:01:37]} Rd1 {[%emt 0:01:49]} 37. Qh4 {[%emt 0:02:57]} Qc5+ {[%emt 0:06:19]} 38. Kg2 {[%emt 0:00:12]} Nd2+ {[%emt 0:01:22]} 39. Kh3 {[%emt 0:00:36]} Nf3 {[%emt 0:02:33]} 40. Qf2 {[%emt 0:00:00]} Qxf2 {[%emt 0:00:00]} 41. Rxf2 {[%emt 0:04:16]} Rxe1 {[%emt 0:00:46]} 42. Nc3 {[%emt 0:01:11]} Nxg5+ {[%emt 0:01:17]} 43. fxg5 {[%emt 0:01:55]} Re3+ {[%emt 0:00:06]} 44. Kh2 {[%emt 0:00:18]} Rxc3 {[%emt 0:00:05]} 45. Rd2 {[%emt 0:00:18]} Re7 {[%emt 0:00:38]} 46. Rd6 {[%emt 0:00:20]} Be8 {[%emt 0:00:12]} 47. Ra6 {[%emt 0:00:17]} Re3 {[%emt 0:00:16]} 0-1

[Event "EYCC Open-U14 2019"]
[Site "Bratislava"]
[Date "2019.08.02"]
[Round "1.19"]
[White "Rozen, Eytan"]
[Black "Heldenbergh, Nils"]
[Result "1-0"]
[ECO "A13"]
[WhiteElo "2260"]
[BlackElo "1942"]
[Annotator "NA"]
[PlyCount "57"]
[EventDate "2019.08.02"]
[EventType "swiss"]
[EventCountry "SVK"]
[SourceTitle "playchess.com"]
[Source "ChessBase"]
[SourceQuality "1"]
[TimeControl "40/5400+30:1800+30"]

1. Nf3 {[%emt 0:00:00]} Nf6 {[%emt 0:00:00]} 2. c4 {[%emt 0:00:41]} e6 {[%emt 0:00:00]} 3. g3 {[%emt 0:00:33]} d5 {[%emt 0:00:00]} 4. Bg2 {[%emt 0:01:26]} dxc4 {[%emt 0:00:00]} 5. Qa4+ {[%emt 0:00:32]} c6 {[%emt 0:00:04]} 6. Qxc4 {[%emt 0:00:05]} b5 {[%emt 0:00:05]} 7. Qc2 {[%emt 0:00:40]} Bb7 {[%emt 0:01:12]} 8. O-O {[%emt 0:00:08]} a6 {[%emt 0:01:13]} 9. b3 {[%emt 0:04:35]} Nbd7 {[%emt 0:02:23]} 10. Bb2 {[%emt 0:01:18]} Rc8 {[%emt 0:05:11]} 11. Ne5 {[%emt 0:04:31]} Nxe5 {[%emt 0:09:58]} 12. Bxe5 {[%emt 0:00:03]} Bd6 {[%emt 0:00:06]} 13. d4 {[%emt 0:15:45]} O-O {[%emt 0:20:51]} 14. Nc3 {[%emt 0:06:26]} Bxe5 {[%emt 0:17:25]} 15. dxe5 {[%emt 0:00:03]} Ng4 {[%emt 0:03:17]} 16. Rfd1 {[%emt 0:28:38]} Qb6 {[%emt 0:11:23]} 17. Ne4 {[%emt 0:00:31]} Nxe5 {[%emt 0:03:07]} 18. Qc5 {[%emt 0:00:47]} Qc7 {[%emt 0:03:57]} 19. Nd6 {[%emt 0:00:49]} Nd7 {[%emt 0:00:06]} 20. Qa7 {[%emt 0:01:03]} Rb8 {[%emt 0:06:03]} 21. Rac1 {[%emt 0:03:11]} c5 {[%emt 0:01:18]} 22. Bxb7 {[%emt 0:02:17]} Ra8 {[%emt 0:00:41]} 23. Qxa8 {[%emt 0:00:14]} Rxa8 {[%emt 0:00:04]} 24. Bxa8 {[%emt 0:00:07]} Nb6 {[%emt 0:00:27]} 25. Bb7 {[%emt 0:00:57]} Nd5 {[%emt 0:02:07]} 26. Bxd5 {[%emt 0:00:55]} exd5 {[%emt 0:03:35]} 27. Rxd5 {[%emt 0:00:12]} c4 {[%emt 0:00:18]} 28. bxc4 {[%emt 0:00:33]} g6 {[%emt 0:00:13]} 29. c5 {[%emt 0:00:14]} 1-0

[Event "EYCC Open-U14 2019"]
[Site "Bratislava"]
[Date "2019.08.02"]
[Round "1.20"]
[White "Soucek, Petr"]
[Black "Papadiamandis, Elliot"]
[Result "0-1"]
[ECO "A45"]
[WhiteElo "1725"]
[BlackElo "2202"]
[Annotator "NA"]
[PlyCount "78"]
[EventDate "2019.08.02"]
[EventType "swiss"]
[EventCountry "SVK"]
[SourceTitle "playchess.com"]
[Source "ChessBase"]
[SourceQuality "1"]
[TimeControl "40/5400+30:1800+30"]

1. d4 {[%emt 0:00:00]} Nf6 {[%emt 0:00:00]} 2. Bg5 {[%emt 0:00:00]} Ne4 {[%emt 0:00:07]} 3. Bf4 {[%emt 0:00:00]} c5 {[%emt 0:00:07]} 4. f3 {[%emt 0:00:00]} Qa5+ {[%emt 0:00:26]} 5. c3 {[%emt 0:00:03]} Nf6 {[%emt 0:00:10]} 6. d5 {[%emt 0:00:20]} Qb6 {[%emt 0:00:19]} 7. Bc1 {[%emt 0:00:44]} e6 {[%emt 0:01:12]} 8. e4 {[%emt 0:01:29]} exd5 {[%emt 0:00:24]} 9. exd5 {[%emt 0:01:19]} Bd6 {[%emt 0:01:42]} 10. Na3 {[%emt 0:03:48]} O-O {[%emt 0:02:25]} 11. Bc4 {[%emt 0:08:04]} a6 {[%emt 0:03:11]} 12. Ne2 {[%emt 0:06:50]} Qc7 {[%emt 0:07:31]} 13. Bb3 {[%emt 0:06:42]} Re8 {[%emt 0:02:25]} 14. Nc4 {[%emt 0:07:07]} b5 {[%emt 0:02:28]} 15. Nxd6 {[%emt 0:02:02]} Qxd6 {[%emt 0:00:44]} 16. c4 {[%emt 0:02:57]} Qe5 {[%emt 0:07:15]} 17. g3 {[%emt 0:11:18]} Bb7 {[%emt 0:02:07]} 18. Bf4 {[%emt 0:01:57]} Qxb2 {[%emt 0:03:03]} 19. Kf2 {[%emt 0:02:28]} Nh5 {[%emt 0:08:18]} 20. Bd6 {[%emt 0:03:12]} bxc4 {[%emt 0:01:25]} 21. Bxc4 {[%emt 0:02:37]} Qb6 {[%emt 0:15:50]} 22. Rb1 {[%emt 0:03:13]} Qxd6 {[%emt 0:02:51]} 23. Rxb7 {[%emt 0:00:20]} Nf6 {[%emt 0:04:45]} 24. Nc3 {[%emt 0:03:01]} Qe5 {[%emt 0:07:42]} 25. Qd3 {[%emt 0:05:21]} d6 {[%emt 0:04:10]} 26. Na4 {[%emt 0:12:48]} Nbd7 {[%emt 0:02:11]} 27. Rd1 {[%emt 0:02:43]} Qh5 {[%emt 0:01:18]} 28. Kg2 {[%emt 0:01:01]} Ne5 {[%emt 0:00:29]} 29. Qb3 {[%emt 0:04:41]} Nxc4 {[%emt 0:01:04]} 30. Qxc4 {[%emt 0:00:14]} Re3 {[%emt 0:00:48]} 31. g4 {[%emt 0:01:15]} Qe5 {[%emt 0:00:57]} 32. Rd2 {[%emt 0:01:50]} Re8 {[%emt 0:02:08]} 33. Nb6 {[%emt 0:02:50]} Rxf3 {[%emt 0:04:06]} 34. Re2 {[%emt 0:01:31]} Re3 {[%emt 0:00:18]} 35. Rxe3 {[%emt 0:00:06]} Qxe3 {[%emt 0:00:19]} 36. h3 {[%emt 0:01:53]} Qd2+ {[%emt 0:00:16]} 37. Kg3 {[%emt 0:00:26]} Qe1+ {[%emt 0:00:27]} 38. Kf3 {[%emt 0:01:04]} Re3+ {[%emt 0:00:24]} 39. Kf4 {[%emt 0:00:25]} Qf2+ {[%emt 0:00:14]} 0-1

[Event "EYCC Open-U14 2019"]
[Site "Bratislava"]
[Date "2019.08.03"]
[Round "2.1"]
[White "Czernek, Tymon"]
[Black "Kostolansky, Sebastian Lukas"]
[Result "0-1"]
[ECO "B09"]
[WhiteElo "2003"]
[BlackElo "2406"]
[Annotator "NA"]
[PlyCount "72"]
[EventDate "2019.08.02"]
[EventType "swiss"]
[EventCountry "SVK"]
[SourceTitle "playchess.com"]
[Source "ChessBase"]
[SourceQuality "1"]
[TimeControl "40/5400+30:1800+30"]

1. e4 {[%emt 0:00:00]} g6 {[%emt 0:00:00]} 2. d4 {[%emt 0:00:00]} Bg7 {[%emt 0:00:00]} 3. Nc3 {[%emt 0:00:00]} d6 {[%emt 0:00:00]} 4. f4 {[%emt 0:00:00]} Nf6 {[%emt 0:00:00]} 5. Nf3 {[%emt 0:00:04]} O-O {[%emt 0:00:03]} 6. Bd3 {[%emt 0:02:59]} Na6 {[%emt 0:01:19]} 7. O-O {[%emt 0:07:26]} c5 {[%emt 0:00:06]} 8. e5 {[%emt 0:04:00]} Nd7 {[%emt 0:05:22]} 9. Be3 {[%emt 0:21:14]} cxd4 {[%emt 0:07:22]} 10. Bxd4 {[%emt 0:00:05]} dxe5 {[%emt 0:04:49]} 11. fxe5 {[%emt 0:00:09]} Nxe5 {[%emt 0:11:47]} 12. Bxe5 {[%emt 0:00:06]} Bxe5 {[%emt 0:00:06]} 13. Nxe5 {[%emt 0:00:44]} Qd4+ {[%emt 0:00:06]} 14. Kh1 {[%emt 0:00:02]} Qxe5 {[%emt 0:00:07]} 15. Qf3 {[%emt 0:00:58]} Nc5 {[%emt 0:16:51]} 16. Rae1 {[%emt 0:00:15]} Qg5 {[%emt 0:01:27]} 17. Bc4 {[%emt 0:02:36]} Bf5 {[%emt 0:03:58]} 18. Re5 {[%emt 0:14:27]} Rac8 {[%emt 0:08:19]} 19. Be2 {[%emt 0:05:36]} Qh4 {[%emt 0:07:03]} 20. g3 {[%emt 0:07:11]} Qf6 {[%emt 0:14:17]} 21. Qe3 {[%emt 0:02:09]} Nd7 {[%emt 0:02:43]} 22. Rexf5 {[%emt 0:03:37]} gxf5 {[%emt 0:00:07]} 23. Nd5 {[%emt 0:00:19]} Qc6 {[%emt 0:01:05]} 24. Bf3 {[%emt 0:00:13]} Kh8 {[%emt 0:01:13]} 25. Nxe7 {[%emt 0:10:19]} Qc5 {[%emt 0:00:05]} 26. Qg5 {[%emt 0:01:14]} f4 {[%emt 0:05:05]} 27. Nf5 {[%emt 0:04:37]} Qe5 {[%emt 0:01:46]} 28. gxf4 {[%emt 0:00:54]} Qxb2 {[%emt 0:01:01]} 29. Rd1 {[%emt 0:03:10]} Rxc2 {[%emt 0:00:41]} 30. Qh6 {[%emt 0:04:43]} Rc1 {[%emt 0:02:58]} 31. Qd6 {[%emt 0:01:00]} Rxd1+ {[%emt 0:00:05]} 32. Bxd1 {[%emt 0:00:33]} Re8 {[%emt 0:01:00]} 33. Ne7 {[%emt 0:01:03]} Nf6 {[%emt 0:01:24]} 34. Bb3 {[%emt 0:01:58]} Qb1+ {[%emt 0:00:51]} 35. Kg2 {[%emt 0:00:28]} Qb2+ 36. Kh1 Ng8 0-1

[Event "EYCC Open-U14 2019"]
[Site "Bratislava"]
[Date "2019.08.03"]
[Round "2.2"]
[White "Borhy, Marcell"]
[Black "Chyzy, Jakub"]
[Result "1/2-1/2"]
[ECO "A15"]
[WhiteElo "2382"]
[BlackElo "2093"]
[Annotator "NA"]
[PlyCount "44"]
[EventDate "2019.08.02"]
[EventType "swiss"]
[EventCountry "SVK"]
[SourceTitle "playchess.com"]
[Source "ChessBase"]
[SourceQuality "1"]
[TimeControl "40/5400+30:1800+30"]

1. c4 {[%emt 0:00:00]} Nf6 {[%emt 0:00:00]} 2. g3 {[%emt 0:00:00]} e6 {[%emt 0:00:24]} 3. Bg2 {[%emt 0:00:00]} d5 {[%emt 0:00:15]} 4. Nf3 {[%emt 0:00:09]} Be7 {[%emt 0:00:17]} 5. d4 {[%emt 0:00:18]} O-O {[%emt 0:01:29]} 6. Qc2 {[%emt 0:00:12]} a6 {[%emt 0:04:46]} 7. Nbd2 {[%emt 0:05:50]} c6 {[%emt 0:02:18]} 8. e4 {[%emt 0:04:05]} dxc4 {[%emt 0:04:02]} 9. e5 {[%emt 0:06:32]} Nd5 {[%emt 0:01:11]} 10. Nxc4 {[%emt 0:01:08]} b5 {[%emt 0:01:11]} 11. Ne3 {[%emt 0:00:59]} Bb7 {[%emt 0:07:18]} 12. O-O {[%emt 0:02:02]} Nd7 {[%emt 0:02:43]} 13. Nxd5 {[%emt 0:11:45]} cxd5 {[%emt 0:00:19]} 14. Bd2 {[%emt 0:01:07]} Qb6 {[%emt 0:02:45]} 15. Rfc1 {[%emt 0:02:39]} Rfc8 {[%emt 0:00:43]} 16. Qd3 {[%emt 0:05:51]} b4 {[%emt 0:14:28]} 17. Bf1 {[%emt 0:02:34]} Bc6 {[%emt 0:04:25]} 18. a4 {[%emt 0:03:03]} bxa3 {[%emt 0:02:06]} 19. bxa3 {[%emt 0:00:03]} Bb5 {[%emt 0:00:16]} 20. Qb1 {[%emt 0:06:34]} Bxf1 {[%emt 0:03:30]} 21. Kxf1 {[%emt 0:01:26]} Qb5+ {[%emt 0:22:03]} 22. Qxb5 {[%emt 0:18:28]} axb5 {[%emt 0:00:10]} 1/2-1/2

[Event "EYCC Open-U14 2019"]
[Site "Bratislava"]
[Date "2019.08.03"]
[Round "2.3"]
[White "Pasztor, Balazs"]
[Black "Can, Isik"]
[Result "0-1"]
[ECO "C77"]
[WhiteElo "2140"]
[BlackElo "2374"]
[Annotator "NA"]
[PlyCount "86"]
[EventDate "2019.08.02"]
[EventType "swiss"]
[EventCountry "SVK"]
[SourceTitle "playchess.com"]
[Source "ChessBase"]
[SourceQuality "1"]
[TimeControl "40/5400+30:1800+30"]

1. e4 {[%emt 0:00:00]} e5 {[%emt 0:00:00]} 2. Nf3 {[%emt 0:00:00]} Nc6 {[%emt 0:00:00]} 3. Bb5 {[%emt 0:00:15]} a6 {[%emt 0:00:00]} 4. Ba4 {[%emt 0:00:06]} Nf6 {[%emt 0:00:03]} 5. Nc3 {[%emt 0:00:23]} b5 {[%emt 0:00:37]} 6. Bb3 {[%emt 0:00:10]} Be7 {[%emt 0:00:06]} 7. d3 {[%emt 0:01:01]} d6 {[%emt 0:01:16]} 8. a3 {[%emt 0:00:33]} O-O {[%emt 0:05:11]} 9. Nd5 {[%emt 0:05:47]} Be6 {[%emt 0:05:33]} 10. O-O {[%emt 0:05:00]} Re8 {[%emt 0:10:03]} 11. Re1 {[%emt 0:07:12]} h6 {[%emt 0:01:49]} 12. c3 {[%emt 0:03:47]} Bf8 {[%emt 0:15:06]} 13. a4 {[%emt 0:13:23]} Na5 {[%emt 0:11:31]} 14. Ba2 {[%emt 0:07:03]} c5 {[%emt 0:02:02]} 15. Nxf6+ {[%emt 0:09:05]} Qxf6 {[%emt 0:00:25]} 16. Bd5 {[%emt 0:02:30]} Bxd5 {[%emt 0:00:16]} 17. exd5 {[%emt 0:00:09]} c4 {[%emt 0:07:58]} 18. Nd2 {[%emt 0:06:27]} cxd3 {[%emt 0:19:42]} 19. axb5 {[%emt 0:01:33]} axb5 {[%emt 0:00:04]} 20. Ne4 {[%emt 0:02:22]} Qe7 {[%emt 0:00:49]} 21. Qxd3 {[%emt 0:01:44]} Reb8 {[%emt 0:00:17]} 22. f4 {[%emt 0:07:56]} f5 {[%emt 0:03:33]} 23. Nd2 {[%emt 0:05:19]} e4 {[%emt 0:01:24]} 24. Qe2 {[%emt 0:00:36]} b4 {[%emt 0:04:01]} 25. Nc4 {[%emt 0:02:26]} Qc7 {[%emt 0:02:12]} 26. Ne3 {[%emt 0:02:04]} bxc3 {[%emt 0:02:21]} 27. bxc3 {[%emt 0:02:32]} Qc8 {[%emt 0:04:54]} 28. Bd2 {[%emt 0:07:47]} Nb3 {[%emt 0:01:00]} 29. Rxa8 {[%emt 0:00:55]} Rxa8 {[%emt 0:00:01]} 30. Rb1 {[%emt 0:00:22]} Nxd2 {[%emt 0:01:16]} 31. Qxd2 {[%emt 0:00:07]} Ra3 {[%emt 0:00:03]} 32. Qd4 {[%emt 0:02:21]} Rxc3 {[%emt 0:00:21]} 33. h3 {[%emt 0:01:39]} g6 {[%emt 0:01:26]} 34. Qa7 {[%emt 0:02:28]} Rc7 {[%emt 0:00:44]} 35. Qb6 {[%emt 0:00:40]} Qd7 {[%emt 0:00:34]} 36. Ra1 {[%emt 0:00:49]} Bg7 {[%emt 0:00:35]} 37. Ra6 {[%emt 0:01:04]} Rb7 {[%emt 0:00:33]} 38. Qxd6 {[%emt 0:00:48]} Qxd6 {[%emt 0:00:02]} 39. Rxd6 {[%emt 0:00:07]} Bd4 {[%emt 0:00:02]} 40. Rxg6+ {[%emt 0:00:00]} Kf8 {[%emt 0:00:00]} 41. Rg3 {[%emt 0:02:32]} Rg7 {[%emt 0:01:27]} 42. Rxg7 {[%emt 0:04:20]} Bxe3+ {[%emt 0:00:01]} 43. Kf1 {[%emt 0:00:20]} Kxg7 {[%emt 0:00:05]} 0-1

[Event "EYCC Open-U14 2019"]
[Site "Bratislava"]
[Date "2019.08.03"]
[Round "2.4"]
[White "Ochedzan, Tymon"]
[Black "Popov, Konstantin"]
[Result "1/2-1/2"]
[ECO "B94"]
[WhiteElo "2037"]
[BlackElo "2367"]
[Annotator "NA"]
[PlyCount "121"]
[EventDate "2019.08.02"]
[EventType "swiss"]
[EventCountry "SVK"]
[SourceTitle "playchess.com"]
[Source "ChessBase"]
[SourceQuality "1"]
[TimeControl "40/5400+30:1800+30"]

1. e4 {[%emt 0:00:00]} c5 {[%emt 0:00:00]} 2. Nf3 {[%emt 0:00:00]} d6 {[%emt 0:00:24]} 3. d4 {[%emt 0:00:06]} Nf6 {[%emt 0:00:51]} 4. Nc3 {[%emt 0:00:43]} cxd4 {[%emt 0:00:19]} 5. Nxd4 {[%emt 0:00:29]} a6 {[%emt 0:00:52]} 6. Bg5 {[%emt 0:00:32]} Nbd7 {[%emt 0:00:47]} 7. a4 {[%emt 0:02:09]} e6 {[%emt 0:04:03]} 8. a5 {[%emt 0:02:44]} Be7 {[%emt 0:02:26]} 9. Nb3 {[%emt 0:01:39]} O-O {[%emt 0:01:51]} 10. Be2 {[%emt 0:02:22]} Qc7 {[%emt 0:10:55]} 11. O-O {[%emt 0:01:00]} b5 {[%emt 0:04:54]} 12. axb6 {[%emt 0:03:15]} Nxb6 {[%emt 0:00:09]} 13. Be3 {[%emt 0:06:52]} Bb7 {[%emt 0:02:07]} 14. Na5 {[%emt 0:07:56]} Nfd7 {[%emt 0:19:42]} 15. Nxb7 {[%emt 0:05:32]} Qxb7 {[%emt 0:00:02]} 16. f4 {[%emt 0:01:29]} Rfc8 {[%emt 0:05:29]} 17. Bd4 {[%emt 0:04:42]} e5 {[%emt 0:05:05]} 18. fxe5 {[%emt 0:05:46]} dxe5 {[%emt 0:01:38]} 19. Bf2 {[%emt 0:02:17]} Bc5 {[%emt 0:01:58]} 20. Qd3 {[%emt 0:09:21]} a5 {[%emt 0:10:44]} 21. Qb5 {[%emt 0:04:05]} Qa7 {[%emt 0:03:50]} 22. Kh1 {[%emt 0:11:23]} Bxf2 {[%emt 0:13:54]} 23. Rxf2 {[%emt 0:00:39]} Rc5 {[%emt 0:03:55]} 24. Qb3 {[%emt 0:03:31]} Nf6 {[%emt 0:00:23]} 25. Raf1 {[%emt 0:02:27]} Rb8 {[%emt 0:02:34]} 26. Qa3 {[%emt 0:06:47]} Nbd7 {[%emt 0:01:32]} 27. Bd3 {[%emt 0:01:22]} Qb7 {[%emt 0:01:39]} 28. Na4 {[%emt 0:01:13]} Rc7 {[%emt 0:00:17]} 29. b3 {[%emt 0:02:22]} Qb4 {[%emt 0:00:50]} 30. Qc1 {[%emt 0:03:10]} Nf8 {[%emt 0:01:04]} 31. Rf5 {[%emt 0:03:49]} Ng6 {[%emt 0:00:32]} 32. Qe3 {[%emt 0:00:21]} Rd8 {[%emt 0:00:37]} 33. Nb2 {[%emt 0:01:10]} Qd4 {[%emt 0:00:24]} 34. Qxd4 {[%emt 0:01:40]} Rxd4 {[%emt 0:00:05]} 35. Nc4 {[%emt 0:00:34]} a4 {[%emt 0:00:37]} 36. R5f3 {[%emt 0:02:55]} axb3 {[%emt 0:00:19]} 37. cxb3 {[%emt 0:00:03]} h5 {[%emt 0:01:07]} 38. Kg1 {[%emt 0:00:28]} Rb7 {[%emt 0:00:30]} 39. Bc2 {[%emt 0:00:43]} h4 {[%emt 0:00:31]} 40. Rf5 {[%emt 0:00:00]} Ng4 {[%emt 0:00:00]} 41. Rg5 {[%emt 0:07:27]} Nf6 {[%emt 0:07:42]} 42. Nxe5 {[%emt 0:02:17]} Nxe5 {[%emt 0:00:09]} 43. Rxf6 {[%emt 0:03:36]} Rd2 {[%emt 0:10:32]} 44. Rf2 {[%emt 0:01:41]} Rxf2 {[%emt 0:00:09]} 45. Kxf2 {[%emt 0:00:07]} f6 {[%emt 0:00:08]} 46. Rh5 {[%emt 0:04:14]} g5 {[%emt 0:03:33]} 47. g3 {[%emt 0:01:32]} Ra7 {[%emt 0:01:23]} 48. gxh4 {[%emt 0:02:47]} gxh4 {[%emt 0:03:56]} 49. Bd1 {[%emt 0:02:26]} Ra2+ {[%emt 0:00:47]} 50. Ke3 {[%emt 0:03:37]} Rxh2 {[%emt 0:00:41]} 51. b4 {[%emt 0:00:23]} Rh3+ {[%emt 0:03:04]} 52. Kf4 {[%emt 0:02:33]} Kg7 {[%emt 0:01:27]} 53. Kf5 {[%emt 0:01:28]} Ng6 {[%emt 0:01:16]} 54. e5 {[%emt 0:01:27]} Nxe5 {[%emt 0:00:30]} 55. b5 {[%emt 0:01:13]} Rd3 {[%emt 0:01:16]} 56. Bc2 {[%emt 0:00:21]} Rc3 {[%emt 0:00:26]} 57. Be4 {[%emt 0:00:15]} Ng6 {[%emt 0:01:47]} 58. b6 {[%emt 0:00:46]} Rc5+ {[%emt 0:00:41]} 59. Kg4 {[%emt 0:00:05]} Rc4 {[%emt 0:00:30]} 60. Kf3 {[%emt 0:00:09]} Rb4 {[%emt 0:00:23]} 61. b7 {[%emt 0:00:19]} 1/2-1/2

[Event "EYCC Open-U14 2019"]
[Site "Bratislava"]
[Date "2019.08.03"]
[Round "2.5"]
[White "Tsvetkov, Andrey"]
[Black "Popov, Maksim M."]
[Result "1-0"]
[ECO "E25"]
[WhiteElo "2324"]
[BlackElo "2152"]
[Annotator "NA"]
[PlyCount "79"]
[EventDate "2019.08.02"]
[EventType "swiss"]
[EventCountry "SVK"]
[SourceTitle "playchess.com"]
[Source "ChessBase"]
[SourceQuality "1"]
[TimeControl "40/5400+30:1800+30"]

1. d4 {[%emt 0:00:00]} Nf6 {[%emt 0:00:00]} 2. c4 {[%emt 0:00:00]} e6 {[%emt 0:00:00]} 3. Nc3 {[%emt 0:00:00]} Bb4 {[%emt 0:00:11]} 4. f3 {[%emt 0:00:00]} d5 {[%emt 0:00:17]} 5. a3 {[%emt 0:00:00]} Bxc3+ {[%emt 0:00:56]} 6. bxc3 {[%emt 0:00:00]} c5 {[%emt 0:01:50]} 7. cxd5 {[%emt 0:00:12]} Nxd5 {[%emt 0:00:28]} 8. dxc5 {[%emt 0:00:05]} O-O {[%emt 0:02:02]} 9. e4 {[%emt 0:01:00]} Ne7 {[%emt 0:03:07]} 10. Qxd8 {[%emt 0:08:29]} Rxd8 {[%emt 0:00:06]} 11. Be3 {[%emt 0:00:25]} Nbc6 {[%emt 0:03:54]} 12. Rb1 {[%emt 0:01:09]} Ng6 {[%emt 0:08:35]} 13. f4 {[%emt 0:01:28]} Rb8 {[%emt 0:07:15]} 14. Nf3 {[%emt 0:01:51]} Bd7 {[%emt 0:00:43]} 15. h4 {[%emt 0:08:33]} Na5 {[%emt 0:06:55]} 16. h5 {[%emt 0:06:56]} Ne7 {[%emt 0:00:35]} 17. h6 {[%emt 0:00:16]} g6 {[%emt 0:09:31]} 18. Ne5 {[%emt 0:03:29]} f5 {[%emt 0:04:21]} 19. Bd3 {[%emt 0:06:59]} Bc6 {[%emt 0:02:50]} 20. Nxc6 {[%emt 0:00:49]} bxc6 {[%emt 0:03:20]} 21. Ke2 {[%emt 0:15:17]} fxe4 {[%emt 0:01:03]} 22. Bxe4 {[%emt 0:00:06]} Nc4 {[%emt 0:00:55]} 23. Bd4 {[%emt 0:13:31]} Nxa3 {[%emt 0:04:05]} 24. Rxb8 {[%emt 0:00:27]} Rxb8 {[%emt 0:00:05]} 25. Ra1 {[%emt 0:00:38]} Rb3 {[%emt 0:01:14]} 26. Be5 {[%emt 0:09:43]} Nd5 {[%emt 0:03:07]} 27. Bc2 {[%emt 0:08:26]} Nxc2 {[%emt 0:08:19]} 28. Rxa7 {[%emt 0:00:01]} Nce3 {[%emt 0:16:53]} 29. Bd6 {[%emt 0:01:08]} Rb2+ {[%emt 0:05:19]} 30. Kf3 {[%emt 0:01:00]} g5 {[%emt 0:00:47]} 31. Rg7+ {[%emt 0:00:59]} Kh8 {[%emt 0:00:05]} 32. Rf7 {[%emt 0:00:01]} Rf2+ {[%emt 0:01:14]} 33. Kxf2 {[%emt 0:01:11]} Ng4+ {[%emt 0:00:05]} 34. Ke1 {[%emt 0:00:46]} Nxh6 {[%emt 0:00:06]} 35. Rf8+ {[%emt 0:01:49]} Kg7 {[%emt 0:00:05]} 36. fxg5 {[%emt 0:00:03]} Nf7 {[%emt 0:00:48]} 37. Rc8 {[%emt 0:00:04]} Nxc3 {[%emt 0:00:09]} 38. Rxc6 {[%emt 0:00:16]} Ne4 {[%emt 0:00:09]} 39. Be7 {[%emt 0:01:28]} Kg6 {[%emt 0:02:32]} 40. Rxe6+ 1-0